bitfinex/quotes_ETHUSD_20250526
["timestamp","ask_amount","ask_price","bid_price","bid_amount"]
[1748284612949,4.45682594,2542.2,2542.1,0.06030295]
[1748284617762,8.38882594,2542.2,2542.1,0.06030295]
[1748284625881,3.70492594,2542.2,2542.1,0.06030295]
[1748284626057,2.72784437,2542.2,2542.1,0.06030295]
[1748284628405,2.77701976,2542.2,2542.1,0.06030295]
[1748284628909,2.72784437,2542.2,2542.1,0.06030295]
[1748284632124,2.72784437,2542.2,2542.1,0.15440295]
[1748284632942,2.72784437,2542.2,2542.1,0.52783452]
[1748284633430,2.72784437,2542.2,2542.1,0.43373452]
[1748284641857,3.23663594,2542.2,2542.1,0.43373452]
[1748284642625,3.23663594,2542.2,2542.1,0.06030295]
[1748284651000,2.72784437,2542.2,2542.1,0.06030295]
[1748284651178,2.72784437,2542.2,2542.1,4.32444147]
[1748284651971,2.72784437,2542.2,2542.1,4.69802512]
[1748284653123,2.72784437,2542.2,2542.1,0.5279866]
[1748284653281,2.72784437,2542.2,2542.1,0.4338866]
[1748284654112,2.72784437,2542.2,2542.1,0.5279866]
[1748284654486,4.34159125,2542.3,2542.1,0.4338866]
[1748284654824,4.34159125,2542.3,2542.2,12.26413852]
[1748284654825,4.34154463,2542.3,2542.2,12.26413852]
[1748284655181,2.36006765,2542.3,2542.2,12.26413852]
[1748284655623,2.36006765,2542.3,2542.2,12.17003852]
[1748284655794,2.36006765,2542.3,2542.2,12.26413852]
[1748284655995,2.36006765,2542.3,2542.2,12.63772217]
[1748284659116,2.35989261,2542.5,2542.3,0.0941]
[1748284659322,2.35997482,2542.4,2542.3,12.0251]
[1748284659511,2.35997482,2542.4,2542.3,16.19513852]
[1748284660308,2.35997482,2542.4,2542.3,16.56782576]
[1748284661934,2.35969981,2542.7,2542.4,0.0941]
[1748284662105,0.3671731,2543.0,2542.8,0.0941]
[1748284662442,2.35951079,2542.9,2542.8,0.0941]
[1748284662612,2.35951079,2542.9,2542.8,12.26413852]
[1748284663414,2.35951079,2542.9,2542.8,12.66360553]
[1748284664346,2.35951079,2542.9,2542.8,13.03558318]
[1748284664715,2.35325972,2542.9,2542.8,13.03558318]
[1748284664921,2.35325972,2542.9,2542.8,13.23405049]
[1748284669148,2.35933298,2543.1,2543.0,0.0941]
[1748284671856,2.35933298,2543.1,2542.9,8.0]
[1748284671857,2.35941801,2543.0,2542.9,8.0]
[1748284672059,2.35960358,2542.8,2542.7,4.129]
[1748284672247,2.35978919,2542.6,2542.5,0.46751773]
[1748284673074,2.35997482,2542.4,2542.3,12.26413852]
[1748284673642,2.35997482,2542.4,2542.3,8.0941]
[1748284673873,2.35997482,2542.4,2542.1,8.55456097]
[1748284673874,2.36006765,2542.3,2542.2,11.93]
[1748284674277,2.36006765,2542.3,2542.2,12.3019029]
[1748284674884,2.36006765,2542.3,2542.2,12.68602852]
[1748284677896,2.35992787,2542.5,2542.2,12.68602852]
[1748284678195,2.35992787,2542.5,2542.4,4.17003852]
[1748284678498,2.35983173,2542.6,2542.5,8.0]
[1748284679397,2.35983173,2542.6,2542.5,8.3719029]
[1748284680900,2.35983173,2542.6,2542.5,8.4660029]
[1748284681196,2.35983173,2542.6,2542.5,12.3960029]
[1748284685711,2.35983173,2542.6,2542.5,0.3719029]
[1748284685881,2.35983173,2542.6,2542.5,8.3719029]
[1748284686081,2.35983173,2542.6,2542.4,0.3719029]
[1748284686082,2.359882,2542.5,2542.4,0.3719029]
[1748284689881,3.91128423,2542.5,2542.4,0.3719029]
[1748284690916,4.278651,2542.5,2542.4,0.3719029]
[1748284691419,2.36006765,2542.3,2542.2,0.38412562]
[1748284691590,2.36016049,2542.2,2542.1,12.18730295]
[1748284692721,2.36016049,2542.2,2542.1,12.56055702]
[1748284693131,3.14696049,2542.2,2542.1,8.43355702]
[1748284693338,3.93366285,2542.2,2542.1,0.43355702]
[1748284693939,3.93366285,2542.2,2542.1,0.06030295]
[1748284694221,4.30081647,2542.2,2542.1,0.06030295]
[1748284694424,4.34999429,2542.2,2542.1,0.06030295]
[1748284694781,4.30081647,2542.2,2542.1,0.06030295]
[1748284695945,4.34999491,2542.2,2542.1,0.06030295]
[1748284696801,4.30081647,2542.2,2542.1,0.06030295]
[1748284697199,4.85081647,2542.2,2542.1,0.06030295]
[1748284697860,4.30081647,2542.2,2542.1,0.06030295]
[1748284698953,8.23181647,2542.2,2542.1,0.06030295]
[1748284699653,3.51411411,2542.2,2542.1,0.06030295]
[1748284699853,2.72731411,2542.2,2542.1,4.23034147]
[1748284700019,2.72731411,2542.2,2542.1,0.06030295]
[1748284700645,2.36016049,2542.2,2542.1,0.06030295]
[1748284709490,3.22093446,2542.2,2542.1,0.06030295]
[1748284709653,3.96586025,2542.2,2542.1,0.06030295]
[1748284710494,4.33292049,2542.2,2542.1,0.06030295]
[1748284710699,3.53882073,2542.2,2542.1,0.06030295]
[1748284714865,7.51899838,2542.2,2542.1,0.06030295]
[1748284715058,7.46982073,2542.2,2542.1,0.06030295]
[1748284721020,8.01982073,2542.2,2542.1,0.06030295]
[1748284723288,2.36099634,2541.3,2541.2,8.0]
[1748284724122,2.36099634,2541.3,2541.2,8.37427807]
[1748284743272,2.72926273,2541.3,2541.2,8.37427807]
[1748284744482,3.36492019,2541.3,2541.2,0.37427807]
[1748284744651,4.11213147,2541.3,2541.2,0.37427807]
[1748284746167,2.36108924,2541.2,2541.1,4.226]
[1748284746554,2.72935563,2541.2,2541.1,0.1]
[1748284746864,4.00597017,2541.2,2541.1,0.1]
[1748284748175,2.72935563,2541.2,2541.1,4.27003852]
[1748284748383,2.72935563,2541.2,2541.1,12.36413852]
[1748284748749,2.72935563,2541.2,2541.1,12.73874259]
[1748284749677,2.72935563,2541.2,2541.1,8.56870407]
[1748284751050,2.72935563,2541.2,2541.1,8.47460407]
[1748284757483,4.12407083,2541.2,2541.1,0.47460407]
[1748284758807,4.12407083,2541.2,2541.1,0.1]
[1748284765419,4.72326974,2541.2,2541.1,0.1]
[1748284765622,4.67407083,2541.2,2541.1,0.1]
[1748284767250,4.72327465,2541.2,2541.1,0.1]
[1748284767627,4.67407083,2541.2,2541.1,0.1]
[1748284770271,12.54407083,2541.2,2541.1,0.1]
[1748284771371,14.12700995,2541.2,2541.1,0.1]
[1748284771939,2.36201873,2540.2,2540.1,0.1]
[1748284773184,2.36201873,2540.2,2540.1,0.47418267]
[1748284773692,2.36201873,2540.2,2540.1,0.1]
[1748284787425,2.36201873,2540.2,2540.1,12.36413852]
[1748284788389,2.36201873,2540.2,2540.1,12.73846401]
[1748284791492,2.36201873,2540.2,2540.1,16.67246401]
[1748284794624,2.36201873,2540.2,2540.1,17.13998174]
[1748284803050,2.36201873,2540.2,2540.1,9.03594322]
[1748284803224,2.36201873,2540.2,2540.1,17.13998174]
[1748284807120,2.36201873,2540.2,2540.1,21.26198174]
[1748284811252,2.36201873,2540.2,2540.1,17.32798174]
[1748284811495,2.36201873,2540.2,2540.1,17.23388174]
[1748284811973,2.36201873,2540.2,2540.1,16.10464481]
[1748284813272,2.36186577,2540.4,2540.2,8.0]
[1748284813473,2.36167525,2540.6,2540.4,0.0941]
[1748284813672,2.36167525,2540.6,2540.5,3.04080159]
[1748284813875,2.36167525,2540.6,2540.5,11.04080159]
[1748284814284,2.36167525,2540.6,2540.5,11.88264481]
[1748284814641,2.36167525,2540.6,2540.5,8.84184322]
[1748284814844,3.622699,2540.6,2540.5,0.84184322]
[1748284815082,3.99092854,2540.6,2540.5,0.84184322]
[1748284815288,3.99092854,2540.6,2540.5,0.37432549]
[1748284816899,2.36173981,2540.5,2540.4,0.37432549]
[1748284818017,2.72996935,2540.5,2540.4,0.37432549]
[1748284821895,2.36173981,2540.5,2540.4,0.37432549]
[1748284824123,2.73016179,2540.5,2540.4,0.37432549]
[1748284825121,2.36173981,2540.5,2540.4,0.37432549]
[1748284831500,2.36173981,2540.5,2540.4,0.84184322]
[1748284832335,1.98187457,2541.0,2540.4,12.86994322]
[1748284832535,4.34314965,2541.0,2540.9,4.180839]
[1748284832734,4.85393187,2541.0,2540.9,4.180839]
[1748284832934,4.34314965,2541.0,2540.9,4.180839]
[1748284833138,2.36127508,2541.0,2540.9,4.55516449]
[1748284833308,2.72954344,2541.0,2540.9,4.55516449]
[1748284835460,2.72954344,2541.0,2540.9,12.55516449]
[1748284835937,2.72954344,2541.0,2540.9,16.67416449]
[1748284836309,2.36127508,2541.0,2540.9,16.67416449]
[1748284837442,2.36127508,2541.0,2540.9,20.60716449]
[1748284841950,2.36127508,2541.0,2540.9,12.49332549]
[1748284842115,2.36127508,2541.0,2540.9,16.42632549]
[1748284845549,2.36127508,2541.0,2540.9,16.62786229]
[1748284845859,2.36127508,2541.0,2540.9,16.42632549]
[1748284848766,2.36127508,2541.0,2540.9,16.62302525]
[1748284849167,2.36127508,2541.0,2540.9,16.42632549]
[1748284849468,2.36127508,2541.0,2540.9,16.92632549]
[1748284851569,2.36127508,2541.0,2540.9,17.1230837]
[1748284855982,2.36121221,2541.1,2540.9,17.1230837]
[1748284856283,2.36121221,2541.1,2541.0,12.180839]
[1748284857101,3.17030055,2541.7,2541.0,12.180839]
[1748284857399,2.36095976,2541.4,2541.1,0.0941]
[1748284857542,2.36095976,2541.4,2541.3,8.0]
[1748284858484,2.36095976,2541.4,2541.3,12.55516449]
[1748284859687,2.36095976,2541.4,2541.3,12.9503597]
[1748284866998,2.36095976,2541.4,2541.3,12.9483597]
[1748284867901,2.36090343,2541.4,2541.3,12.9483597]
[1748284870220,3.6122833,2541.4,2541.3,0.37432549]
[1748284877380,3.14010343,2541.4,2541.3,0.37432549]
[1748284877678,3.14010343,2541.4,2541.3,8.37432549]
[1748284879485,2.36090343,2541.4,2541.3,8.37432549]
[1748284883887,2.36090343,2541.4,2541.3,8.84184322]
[1748284886209,2.36090343,2541.4,2541.3,12.95184322]
[1748284892831,3.5909833,2541.4,2541.3,12.95184322]
[1748284893237,3.5909833,2541.4,2541.3,12.48432549]
[1748284894031,3.95921185,2541.4,2541.3,12.48432549]
[1748284895832,3.95921185,2541.4,2541.3,0.37432549]
[1748284896245,2.72913198,2541.4,2541.3,4.55516449]
[1748284897899,2.36090343,2541.4,2541.3,4.55516449]
[1748284898935,2.36090343,2541.4,2541.3,0.37432549]
[1748284900640,2.36090343,2541.4,2541.3,0.87432549]
[1748284919357,2.36090343,2541.4,2541.3,1.34184322]
[1748284921461,3.5970833,2541.4,2541.3,1.34184322]
[1748284921800,3.96553999,2541.4,2541.3,1.34184322]
[1748284922095,4.01472785,2541.4,2541.3,0.87432549]
[1748284922258,3.96553999,2541.4,2541.3,0.37432549]
[1748284922642,3.96553999,2541.4,2541.3,8.37432549]
[1748284922643,2.72936012,2541.4,2541.3,8.37432549]
[1748284923350,2.36090343,2541.4,2541.3,8.37432549]
[1748284923888,2.36090343,2541.4,2541.3,8.87432549]
[1748284933214,2.36090343,2541.4,2541.3,9.34184322]
[1748284941227,2.36090343,2541.4,2541.3,13.27384322]
[1748284941428,2.79717457,2542.0,2541.3,13.27384322]
[1748284941632,2.36080033,2541.6,2541.5,12.180839]
[1748284941791,2.36080033,2541.6,2541.5,16.112839]
[1748284942518,2.36080033,2541.6,2541.5,16.95468222]
[1748284945494,2.36080033,2541.6,2541.5,21.05668222]
[1748284945694,2.36080033,2541.6,2541.5,21.25126824]
[1748284947746,2.36080033,2541.6,2541.5,20.78375051]
[1748284948546,2.36080033,2541.6,2541.5,20.76948225]
[1748284949035,2.36080033,2541.6,2541.5,16.64289623]
[1748284949200,2.36080033,2541.6,2541.5,20.57489623]
[1748284950538,2.36080033,2541.6,2541.5,8.37432549]
[1748284950704,2.36080033,2541.6,2541.5,12.30632549]
[1748284954342,2.36080033,2541.6,2541.5,16.48716449]
[1748284955353,2.36080033,2541.6,2541.5,16.95468222]
[1748284955848,2.36080033,2541.6,2541.5,12.77384322]
[1748284956416,2.36080033,2541.6,2541.5,12.30632549]
[1748284958947,2.36080033,2541.6,2541.5,8.37432549]
[1748284959127,2.36080033,2541.6,2541.5,12.30632549]
[1748284959954,3.61314492,2541.6,2541.5,8.37432549]
[1748284960170,3.61314492,2541.6,2541.5,0.37432549]
[1748284960686,3.66233187,2541.6,2541.5,0.37432549]
[1748284960849,7.54514492,2541.6,2541.5,0.37432549]
[1748284961728,7.91321721,2541.6,2541.5,0.37432549]
[1748284961935,2.36090343,2541.4,2541.3,12.102]
[1748284962139,4.36197857,2541.4,2541.3,12.102]
[1748284962665,4.73005086,2541.4,2541.3,12.102]
[1748284963243,4.73005086,2541.4,2541.3,12.47602508]
[1748284963440,4.77923975,2541.4,2541.3,8.37402508]
[1748284963627,8.66205086,2541.4,2541.3,0.37402508]
[1748284963964,2.36127508,2541.0,2540.9,0.40138079]
[1748284964270,2.36136801,2540.9,2540.8,16.58035673]
[1748284964571,0.7644,2541.3,2540.8,16.58035673]
[1748284964742,2.36118216,2541.1,2541.0,4.180839]
[1748284965124,2.36118216,2541.1,2541.0,12.55471094]
[1748284966234,2.36108924,2541.2,2541.0,12.55471094]
[1748284966235,2.36111947,2541.2,2541.1,8.0]
[1748284966563,2.36100903,2541.3,2541.0,8.58081094]
[1748284966766,2.36100903,2541.3,2541.2,12.180839]
[1748284966974,2.36100903,2541.3,2541.2,16.112839]
[1748284967672,0.7895,2541.6,2541.2,16.112839]
[1748284967863,2.36090343,2541.4,2541.2,8.112839]
[1748284968267,2.36090343,2541.4,2541.3,8.0]
[1748284969243,2.36090343,2541.4,2541.3,8.37387194]
[1748284969845,2.36081616,2541.5,2541.3,8.46797194]
[1748284970171,2.36070446,2541.7,2541.5,8.0]
[1748284970334,2.36071765,2541.6,2541.5,11.932]
[1748284970533,2.36071765,2541.6,2541.5,16.112839]
[1748284971460,2.36071765,2541.6,2541.5,16.48671094]
[1748284975761,2.36071765,2541.6,2541.5,8.37387194]
[1748284985806,2.36071765,2541.6,2541.5,0.37387194]
[1748284985807,2.83285384,2541.6,2541.5,0.37387194]
[1748284986021,3.63375384,2541.6,2541.5,0.37387194]
[1748284986901,2.36090343,2541.4,2541.3,12.099]
[1748284987263,3.16180343,2541.4,2541.3,12.099]
[1748284987597,4.03412195,2541.4,2541.3,12.099]
[1748284988598,4.03412195,2541.4,2541.3,12.47294532]
[1748284989075,2.36090343,2541.4,2541.3,12.47294532]
[1748284989281,2.36090343,2541.4,2541.3,16.65378432]
[1748284989765,2.36090343,2541.4,2541.3,20.58578432]
[1748284991279,2.36090343,2541.4,2541.3,21.05330205]
[1748284997623,2.36090343,2541.4,2541.3,20.58578432]
[1748284999119,2.36090343,2541.4,2541.3,16.65378432]
[1748284999326,2.36090343,2541.4,2541.3,20.58578432]
[1748285000423,2.36090343,2541.4,2541.3,21.05358509]
[1748285002442,2.36090343,2541.4,2541.3,0.84174609]
[1748285002443,2.91203684,2541.4,2541.3,0.84174609]
[1748285002641,3.74343684,2541.4,2541.3,0.84174609]
[1748285003089,2.36127508,2541.0,2540.9,4.49764418]
[1748285003619,2.36127508,2541.0,2540.9,12.49764418]
[1748285004326,2.36127508,2541.0,2540.9,12.87181912]
[1748285004629,2.36127508,2541.0,2540.9,16.80381912]
[1748285006531,2.36127508,2541.0,2540.9,12.87181912]
[1748285006741,2.95344003,2541.0,2540.9,12.87181912]
[1748285006922,2.36127508,2541.0,2540.9,12.87181912]
[1748285015960,2.36127508,2541.0,2540.9,12.96591912]
[1748285018865,2.36127508,2541.0,2540.9,12.87181912]
[1748285019158,2.36127508,2541.0,2540.9,12.70981912]
[1748285022154,2.36127508,2541.0,2540.9,8.77681912]
[1748285022354,2.36127508,2541.0,2540.9,12.70981912]
[1748285023983,2.36127508,2541.0,2540.9,16.89065812]
[1748285029592,2.36118216,2541.1,2541.0,8.0]
[1748285030688,2.36118216,2541.1,2541.0,8.37417494]
[1748285034003,2.36116375,2541.2,2541.0,8.37417494]
[1748285034298,2.36116375,2541.2,2541.1,4.180839]
[1748285035591,2.36116375,2541.2,2541.1,5.02309376]
[1748285036771,2.36116375,2541.2,2541.1,5.11719376]
[1748285037805,0.7659,2541.6,2541.1,5.11719376]
[1748285037806,0.7659,2541.6,2541.1,13.11719376]
[1748285038103,2.36094904,2541.4,2541.2,11.932]
[1748285038480,2.36099634,2541.3,2541.2,11.932]
[1748285039403,2.36099634,2541.3,2541.2,17.11182855]
[1748285040508,2.36099634,2541.3,2541.2,16.48701394]
[1748285041910,3.17632374,2541.9,2541.2,16.48701394]
[1748285042116,2.36089181,2541.5,2541.3,0.0941]
[1748285042317,2.36090343,2541.4,2541.3,0.46827494]
[1748285043294,2.36090343,2541.4,2541.3,12.64911394]
[1748285043718,2.36085941,2541.5,2541.4,8.0]
[1748285043882,2.36085941,2541.5,2541.4,20.205839]
[1748285045221,2.36085941,2541.5,2541.4,21.04715842]
[1748285047981,2.36085941,2541.5,2541.4,20.58001394]
[1748285050327,2.36085941,2541.5,2541.4,16.39917494]
[1748285050495,3.11715941,2541.5,2541.4,8.37417494]
[1748285050856,3.71413378,2541.5,2541.4,0.37417494]
[1748285051026,3.66494934,2541.5,2541.4,0.37417494]
[1748285051723,3.14298924,2541.2,2541.1,4.092]
[1748285053123,3.14298924,2541.2,2541.1,4.46582547]
[1748285054153,2.36108924,2541.2,2541.1,12.46582547]
[1748285056334,2.36108924,2541.2,2541.1,12.93296995]
[1748285056725,2.36108924,2541.2,2541.1,16.86496995]
[1748285057039,2.11062332,2541.3,2541.2,8.0]
[1748285057245,2.36083433,2541.5,2541.2,12.180839]
[1748285057440,2.36090343,2541.4,2541.2,12.180839]
[1748285057642,2.36085128,2541.5,2541.2,12.180839]
[1748285058024,2.36085128,2541.5,2541.4,12.180839]
[1748285058349,2.36085128,2541.5,2541.4,16.112839]
[1748285058516,2.36085128,2541.5,2541.4,16.48666447]
[1748285059610,2.36085128,2541.5,2541.4,16.95380895]
[1748285060329,2.36085128,2541.5,2541.4,12.77296995]
[1748285061052,2.36085128,2541.5,2541.4,12.30582547]
[1748285061258,2.36085128,2541.5,2541.4,16.39582547]
[1748285061414,2.36070246,2541.7,2541.5,8.0]
[1748285061616,2.36070246,2541.7,2541.6,4.180839]
[1748285062352,2.36070246,2541.7,2541.6,4.55466447]
[1748285065872,2.36070246,2541.7,2541.6,0.37382547]
[1748285069670,2.35979422,2542.6,2541.7,8.0]
[1748285069671,0.8051,2542.1,2541.7,8.0]
[1748285069971,2.36043904,2541.9,2541.8,16.112839]
[1748285071184,2.36043904,2541.9,2541.8,16.48666447]
[1748285071389,2.36043904,2541.9,2541.8,12.30582547]
[1748285073183,2.36043904,2541.9,2541.8,8.37382547]
[1748285073404,2.36043904,2541.9,2541.8,16.39482547]
[1748285084025,3.66031756,2541.9,2541.8,8.37382547]
[1748285084721,4.02816462,2541.9,2541.8,8.37382547]
[1748285090511,7.96016462,2541.9,2541.8,0.37382547]
[1748285090895,4.02816462,2541.9,2541.8,0.37382547]
[1748285091089,7.96016462,2541.9,2541.8,0.37382547]
[1748285091600,2.36071765,2541.6,2541.5,8.0]
[1748285092205,2.36071765,2541.6,2541.5,8.37423246]
[1748285092511,2.72856471,2541.6,2541.5,8.37423246]
[1748285093427,2.36071765,2541.6,2541.5,8.37423246]
[1748285096212,3.11961765,2541.6,2541.5,8.37423246]
[1748285100615,2.36071765,2541.6,2541.5,8.37423246]
[1748285103332,3.13071765,2541.6,2541.5,8.37423246]
[1748285103519,3.67985402,2541.6,2541.5,8.37423246]
[1748285104513,7.61185402,2541.6,2541.5,0.37423246]
[1748285105102,0.7672,2541.2,2540.9,8.40264418]
[1748285105407,2.36127508,2541.0,2540.9,0.40264418]
[1748285105629,2.36127508,2541.0,2540.9,8.0]
[1748285106349,2.36127508,2541.0,2540.9,8.37374922]
[1748285107738,3.19361765,2541.6,2541.0,0.0941]
[1748285107948,2.36115694,2541.2,2541.1,11.932]
[1748285108235,0.8329,2541.8,2541.1,16.112839]
[1748285108447,2.36104547,2541.3,2541.1,20.832839]
[1748285108734,2.36104547,2541.3,2541.2,8.0]
[1748285109845,2.36104547,2541.3,2541.2,8.8408937]
[1748285111158,2.36104547,2541.3,2541.2,0.8408937]
[1748285111434,2.36104547,2541.3,2541.2,4.7728937]
[1748285111639,2.36104547,2541.3,2541.2,16.8598937]
[1748285112543,2.36104547,2541.3,2541.2,16.39274922]
[1748285114844,2.36104547,2541.3,2541.2,12.46074922]
[1748285115137,2.36104547,2541.3,2541.2,16.39274922]
[1748285116462,2.36104547,2541.3,2541.2,8.37374922]
[1748285116747,2.36104547,2541.3,2541.2,16.39274922]
[1748285118515,3.67917121,2541.3,2541.2,8.37374922]
[1748285118741,3.67917121,2541.3,2541.2,0.37374922]
[1748285119452,4.0963623,2541.3,2541.2,0.37374922]
[1748285119613,4.04716254,2541.3,2541.2,0.37374922]
[1748285120370,3.13227508,2541.0,2540.9,4.087]
[1748285120661,2.36146095,2540.8,2540.7,0.39909084]
[1748285120820,2.36164685,2540.6,2540.5,16.48614448]
[1748285121245,2.36164685,2540.6,2540.5,16.88094909]
[1748285121563,2.36164685,2540.6,2540.5,20.96878075]
[1748285121742,2.36160422,2540.7,2540.6,8.0]
[1748285122332,2.36164685,2540.6,2540.5,9.03678075]
[1748285122538,2.36164685,2540.6,2540.5,20.96978075]
[1748285123037,2.36164685,2540.6,2540.5,21.43692523]
[1748285124222,2.36164685,2540.6,2540.5,9.23608623]
[1748285124429,2.36164685,2540.6,2540.5,16.78794175]
[1748285125529,2.36164685,2540.6,2540.5,12.85494175]
[1748285125863,2.36164685,2540.6,2540.5,16.78794175]
[1748285126562,2.36164685,2540.6,2540.5,16.41380461]
[1748285127757,2.36164685,2540.6,2540.5,16.78754771]
[1748285130173,2.36164685,2540.6,2540.5,8.76854771]
[1748285130377,2.36164685,2540.6,2540.5,16.78754771]
[1748285131884,2.36164685,2540.6,2540.5,12.85454771]
[1748285132073,2.36164685,2540.6,2540.5,16.78754771]
[1748285132452,2.36164685,2540.6,2540.5,8.76854771]
[1748285133346,2.91080196,2540.6,2540.5,0.76854771]
[1748285134286,2.91080196,2540.6,2540.5,0.3737431]
[1748285134458,2.36173981,2540.5,2540.4,8.0]
[1748285135081,2.36173981,2540.5,2540.3,12.579]
[1748285135082,3.15123278,2540.4,2540.3,8.0]
[1748285135269,2.36201873,2540.2,2540.1,8.1]
[1748285135462,2.36201873,2540.2,2540.1,12.033]
[1748285135665,2.36201873,2540.2,2540.1,8.1]
[1748285136283,2.36201873,2540.2,2540.1,0.1]
[1748285136489,2.36201873,2540.2,2540.1,0.47343537]
[1748285136887,3.13851873,2540.2,2540.1,0.47343537]
[1748285137278,2.36201873,2540.2,2540.1,0.47343537]
[1748285137592,2.36201873,2540.2,2540.1,4.65427437]
[1748285137888,2.36197224,2540.3,2540.2,8.0]
[1748285138094,2.36197224,2540.3,2540.1,8.58727437]
[1748285138095,3.17241873,2540.2,2540.1,0.47343537]
[1748285139061,3.17241873,2540.2,2540.1,0.1]
[1748285140496,3.22163898,2540.2,2540.1,0.1]
[1748285140874,3.53942159,2540.2,2540.1,0.1]
[1748285141080,5.27359001,2540.2,2540.1,0.1]
[1748285142195,5.22436751,2540.2,2540.1,0.1]
[1748285143900,9.15836751,2540.2,2540.1,0.1]
[1748285146698,13.33920651,2540.2,2540.1,0.1]
[1748285146899,3.71696285,2539.4,2539.3,0.66666667]
[1748285147100,11.65349813,2539.4,2539.3,0.66666667]
[1748285147273,7.83966199,2539.4,2539.3,0.66666667]
[1748285147796,12.02050099,2539.4,2539.3,0.66666667]
[1748285147995,12.57050099,2539.4,2539.3,0.66666667]
[1748285152074,2.91387991,2538.2,2537.5,0.46717887]
[1748285152275,6.54527783,2537.6,2537.5,0.46717887]
[1748285152611,11.35225217,2537.6,2537.5,0.46717887]
[1748285152812,11.30297783,2537.6,2537.5,0.46717887]
[1748285153110,11.85297783,2537.6,2537.5,0.46717887]
[1748285153512,12.21998069,2537.6,2537.5,0.46717887]
[1748285153796,3.55314169,2537.6,2537.5,0.46717887]
[1748285154181,3.18613883,2537.6,2537.5,0.46717887]
[1748285154380,2.3646252,2537.4,2537.1,0.1]
[1748285154580,2.3648116,2537.2,2537.1,0.1]
[1748285160215,0.7561,2538.0,2537.2,0.7816]
[1748285160418,2.36412114,2538.0,2537.3,8.0]
[1748285160714,2.36452659,2537.6,2537.3,8.0]
[1748285161051,2.364575,2537.5,2537.3,8.0]
[1748285161513,2.3646252,2537.4,2537.3,8.0]
[1748285171205,2.88680672,2537.4,2537.3,8.0]
[1748285171431,2.3647184,2537.3,2537.2,4.325]
[1748285173132,2.3648116,2537.2,2537.1,0.1]
[1748285174906,2.36499802,2537.0,2536.9,4.72]
[1748285175210,2.36509125,2536.9,2536.8,9.18632551]
[1748285175621,2.36489461,2537.2,2536.8,9.18632551]
[1748285175826,2.36477527,2537.3,2537.1,0.7505]
[1748285176139,2.3648116,2537.2,2537.1,0.7505]
[1748285177647,2.36465864,2537.4,2537.1,1.12428767]
[1748285177847,2.3648116,2537.2,2537.1,1.12428767]
[1748285178743,0.7926,2537.8,2537.1,1.12428767]
[1748285178744,2.36477162,2537.3,2537.1,1.12428767]
[1748285179212,2.3648116,2537.2,2537.1,1.12428767]
[1748285179414,2.3648116,2537.2,2537.1,13.06228767]
[1748285179741,2.3648116,2537.2,2537.1,13.52946654]
[1748285180660,2.36477356,2537.3,2537.2,8.0]
[1748285180837,2.3648116,2537.2,2537.1,5.52946654]
[1748285181041,2.3648116,2537.2,2537.1,4.6885]
[1748285181442,2.36474964,2537.3,2537.1,4.6885]
[1748285181637,2.36435437,2537.7,2537.1,4.6885]
[1748285181867,3.07394981,2537.7,2537.1,4.6885]
[1748285182072,2.3648116,2537.2,2537.1,4.6885]
[1748285183255,2.36475511,2537.3,2537.1,4.6885]
[1748285183667,2.36475511,2537.3,2537.2,0.37516418]
[1748285189775,2.36475511,2537.3,2537.2,8.37516418]
[1748285190471,2.36466937,2537.4,2537.2,8.37516418]
[1748285190838,2.3647184,2537.3,2537.2,8.37516418]
[1748285194575,2.36464161,2537.4,2537.2,8.37516418]
[1748285194981,2.36437549,2537.7,2537.4,8.0]
[1748285195167,2.36437549,2537.7,2537.6,8.0]
[1748285195492,2.7329481,2537.7,2537.6,8.0]
[1748285195841,2.7329481,2537.7,2537.5,0.37516418]
[1748285196041,2.36443883,2537.6,2537.5,0.37516418]
[1748285198779,2.36443883,2537.6,2537.5,1.15816418]
[1748285202084,2.80217457,2538.4,2537.7,0.8321]
[1748285202279,2.36378678,2538.3,2537.8,8.0]
[1748285202480,2.80217457,2538.4,2537.8,8.0]
[1748285202776,0.36837919,2538.3,2537.8,8.37516418]
[1748285203078,2.36414383,2538.0,2537.8,8.37516418]
[1748285203277,2.36415934,2537.9,2537.8,8.37516418]
[1748285203587,2.36415934,2537.9,2537.8,8.0]
[1748285205381,2.36415934,2537.9,2537.8,8.37504104]
[1748285205770,2.36406708,2538.0,2537.8,8.37504104]
[1748285205971,5.16586838,2538.4,2538.0,8.0]
[1748285205972,2.3639462,2538.2,2538.0,8.0]
[1748285206273,2.36397305,2538.1,2538.0,11.938]
[1748285207153,1.98187457,2538.6,2538.0,13.08434104]
[1748285207375,2.36363038,2538.5,2538.1,4.19059299]
[1748285207648,2.73191603,2538.5,2538.2,8.0]
[1748285208111,2.36374262,2538.4,2538.3,0.37504104]
[1748285211393,2.36374262,2538.4,2538.3,0.76567003]
[1748285211693,2.36374262,2538.4,2538.3,0.37504104]
[1748285215297,2.36374262,2538.4,2538.3,0.76318875]
[1748285215508,2.36374262,2538.4,2538.3,0.37504104]
[1748285215685,2.83648157,2538.4,2538.3,0.37504104]
[1748285217200,2.36387991,2538.2,2538.1,8.0]
[1748285219968,2.36406619,2538.0,2537.9,0.38642967]
[1748285220215,2.36415934,2537.9,2537.8,8.0]
[1748285220380,2.36415934,2537.9,2537.7,4.24]
[1748285220381,2.3642525,2537.8,2537.7,4.24]
[1748285220580,3.1541525,2537.8,2537.7,4.24]
[1748285220882,3.1541525,2537.8,2537.7,4.61392246]
[1748285221195,3.1541525,2537.8,2537.7,12.61392246]
[1748285221570,3.1541525,2537.8,2537.7,8.37392246]
[1748285221770,4.40750502,2537.8,2537.7,8.37392246]
[1748285222209,4.40750502,2537.8,2537.7,0.37392246]
[1748285222384,2.3648116,2537.2,2537.1,16.177]
[1748285223184,2.3648116,2537.2,2537.1,16.56836153]
[1748285223604,2.3648116,2537.2,2537.1,16.76322373]
[1748285223809,2.3648116,2537.2,2537.1,17.1372395]
[1748285224106,2.3648116,2537.2,2537.1,13.0053773]
[1748285224408,2.3648116,2537.2,2537.1,16.9433773]
[1748285225605,2.3648116,2537.2,2537.1,17.13899072]
[1748285226335,2.36476927,2537.3,2537.2,8.0]
[1748285226472,2.36476927,2537.3,2537.2,12.19059299]
[1748285226925,2.36476927,2537.3,2537.2,16.12859299]
[1748285228083,2.36476927,2537.3,2537.2,16.50260876]
[1748285230119,2.36476927,2537.3,2537.2,12.31201577]
[1748285230281,2.36476927,2537.3,2537.2,16.50260876]
[1748285231916,2.36476927,2537.3,2537.2,12.56460876]
[1748285232219,2.36476927,2537.3,2537.2,12.31201577]
[1748285233336,2.36476927,2537.3,2537.2,16.50260876]
[1748285233726,2.36468116,2537.4,2537.2,16.50260876]
[1748285234242,2.3647184,2537.3,2537.2,16.50260876]
[1748285234539,2.36467634,2537.4,2537.2,16.50260876]